fUST/lending_fUST_20250310
["ID","MTS","AMOUNT","RATE_DAILY","PERIOD"]
[355808880,1741606238682,-6115.41141123,0.00049,90]
[355808902,1741606243048,-848.16,0.0004899,30]
[355808903,1741606243058,-932.55,0.0004899,10]
[355808904,1741606243068,-6502.29230272,0.00049,90]
[355808905,1741606243179,-0.22580602,0.00049,90]
[355808915,1741606246086,-4124.9492,0.00049,90]
[355808916,1741606246150,-46308.59,0.00049,90]
[355808917,1741606336458,500.0,0.00028,10]
[355808918,1741606337008,633.50051788,0.00028,10]
[355808919,1741606835522,200.0,0.00027,120]
[355808920,1741607074822,414.17305092,0.00029254,2]
[355808922,1741607285156,185.0,0.0003,2]
[355808923,1741607289898,185.0,0.0003,3]
[355808924,1741607344069,185.0,0.0003,2]
[355808925,1741607372101,-424.2300918,0.00032148,2]
[355808926,1741607372122,-166.66666666,0.00032242,2]
[355808927,1741607372143,-250.0,0.00032343,2]
[355808928,1741607372164,-4757.830621,0.000328,120]
[355808929,1741607372187,-500.0,0.00033,2]
[355808930,1741607372211,-188.98937054,0.00033,2]
[355808931,1741607421147,200.0,0.0003,2]
[355808984,1741607438201,-600.64932536,0.000307,2]
[355808985,1741607438211,-311.01062946,0.00033,2]
[355808986,1741607438221,-500.0,0.00033,2]
[355808987,1741607438232,-404.7008384,0.0003351,2]
[355808988,1741607438242,-1501.30890785,0.00034068,2]
[355808989,1741607438252,-2124.4740522,0.00034068,2]
[355808990,1741607438262,-713.36537493,0.00034068,2]
[355808992,1741607438369,-713.36537493,0.00034069,2]
[355808993,1741607438385,-713.36537493,0.00034071,2]
[355808994,1741607438395,-713.36537493,0.00034072,2]
[355808995,1741607438405,-713.36537493,0.00034073,2]
[355808996,1741607438415,-807.6,0.00034158,3]
[355808997,1741607438425,-500.0,0.00034167,7]
[355808998,1741607438434,-500.0,0.00034167,7]
[355808999,1741607438444,-500.0,0.00034167,7]
[355809000,1741607438453,-500.0,0.00034167,7]
[355809001,1741607438463,-246.00086668,0.00034167,7]
[355809002,1741607438473,-500.0,0.00034167,7]
[355809003,1741607438483,-500.0,0.00034167,7]
[355809004,1741607438495,-500.0,0.00034167,7]
[355809005,1741607438511,-420.82497746,0.00034167,7]
[355809006,1741607438521,-500.0,0.00034167,7]
[355809007,1741607438531,-500.0,0.00034167,7]
[355809008,1741607438543,-500.0,0.00034167,2]
[355809009,1741607438553,-500.0,0.00034167,7]
[355809010,1741607438563,-500.0,0.00034167,7]
[355809011,1741607438572,-500.0,0.00034167,7]
[355809012,1741607438582,-500.0,0.00034167,7]
[355809013,1741607438592,-500.0,0.00034167,2]
[355809014,1741607438602,-500.0,0.00034167,7]
[355809015,1741607438611,-500.0,0.00034167,7]
[355809016,1741607438620,-500.0,0.00034167,7]
[355809017,1741607438630,-500.0,0.00034167,7]
[355809018,1741607438639,-500.0,0.00034167,2]
[355809019,1741607438649,-500.0,0.00034167,7]
[355809020,1741607438658,-500.0,0.00034167,7]
[355809021,1741607438668,-500.0,0.00034167,7]
[355809022,1741607438677,-500.0,0.00034167,7]
[355809023,1741607438687,-500.0,0.00034167,7]
[355809024,1741607438696,-500.0,0.00034167,2]
[355809025,1741607438706,-500.0,0.00034167,7]
[355809026,1741607438716,-500.0,0.00034167,7]
[355809027,1741607438726,-500.0,0.00034167,7]
[355809028,1741607438735,-500.0,0.00034167,2]
[355809029,1741607438745,-450.0,0.00034167,7]
[355809030,1741607438755,-500.0,0.00034167,7]
[355809031,1741607438765,-500.0,0.00034167,7]
[355809032,1741607438775,-500.0,0.00034167,7]
[355809033,1741607438785,-500.0,0.00034167,2]
[355809034,1741607438796,-500.0,0.00034167,7]
[355809035,1741607438806,-335.57642489,0.00034167,2]
[355809036,1741607438815,-500.0,0.00034167,7]
[355809037,1741607438825,-500.0,0.00034167,7]
[355809038,1741607438835,-500.0,0.00034167,7]
[355809039,1741607438845,-500.0,0.00034167,7]
[355809040,1741607438854,-500.0,0.00034167,7]
[355809041,1741607438864,-500.0,0.00034167,7]
[355809042,1741607438875,-500.0,0.00034167,7]
[355809043,1741607438885,-500.0,0.00034167,7]
[355809044,1741607438895,-500.0,0.00034167,7]
[355809045,1741607438905,-500.0,0.00034167,7]
[355809046,1741607438915,-500.0,0.00034167,7]
[355809047,1741607438925,-500.0,0.00034167,7]
[355809048,1741607438935,-500.0,0.00034167,7]
[355809049,1741607438945,-500.0,0.00034167,7]
[355809050,1741607438955,-500.0,0.00034167,7]
[355809051,1741607438965,-500.0,0.00034167,7]
[355809052,1741607438975,-500.0,0.00034167,7]
[355809053,1741607438984,-500.0,0.00034167,7]
[355809054,1741607438995,-500.0,0.00034167,7]
[355809055,1741607439005,-500.0,0.00034167,7]
[355809056,1741607439014,-500.0,0.00034167,7]
[355809057,1741607439024,-500.0,0.00034167,7]
[355809058,1741607439033,-500.0,0.00034167,7]
[355809059,1741607439046,-500.0,0.00034167,7]
[355809060,1741607439055,-500.0,0.00034167,7]
[355809061,1741607439065,-500.0,0.00034167,7]
[355809062,1741607439074,-500.0,0.00034167,7]
[355809063,1741607439084,-500.0,0.00034167,7]
[355809064,1741607439094,-500.0,0.00034167,7]
[355809065,1741607439103,-500.0,0.00034167,7]
[355809066,1741607439113,-500.0,0.00034167,7]
[355809067,1741607439122,-500.0,0.00034167,7]
[355809068,1741607439132,-500.0,0.00034167,7]
[355809069,1741607439142,-611.89776443,0.00034167,7]
[355809070,1741607439151,-500.0,0.00034167,7]
[355809071,1741607439161,-500.0,0.00034167,7]
[355809072,1741607439170,-500.0,0.00034167,7]
[355809073,1741607439180,-1005.79607984,0.00034168,2]
[355809074,1741607439189,-322375.754229,0.00034169,2]
[355809075,1741607439200,-504.48030145,0.00034173,5]
[355809076,1741607439210,-151.0,0.00034179,14]
[355809077,1741607439220,-9836.06674639,0.0003418,2]
[355809078,1741607439231,-424.68,0.000342,30]
[355809079,1741607439241,-182.12,0.000342,30]
[355809080,1741607439250,-486.2296041,0.00034204,2]
[355809081,1741607439259,-600.0,0.00034844,2]
[355809082,1741607439269,-100000.0,0.0003486,30]
[355809083,1741607439278,-160.0,0.00034865,7]
[355809084,1741607439288,-151.0,0.00034865,14]
[355809085,1741607439300,-151.0,0.00034865,7]
[355809086,1741607439309,-151.0,0.00034865,14]
[355809087,1741607439318,-154.905345,0.00034865,14]
[355809088,1741607439399,-195.5823774,0.00034867,2]
[355809089,1741607439409,-24900.0,0.00034867,2]
[355809090,1741607439419,-622.2,0.00034899,2]
[355809091,1741607439429,-8706.44,0.000349,30]
[355809092,1741607439439,-763.03,0.000349,30]
[355809093,1741607439448,-1156.38433483,0.000349,7]
[355809094,1741607439458,-645.2214,0.00034954,2]
[355809095,1741607439468,-380.0,0.00034984,2]
[355809096,1741607439477,-669.0945918,0.00035009,2]
[355809097,1741607439487,-693.8510917,0.00035064,2]
[355809098,1741607439499,-867.14448427,0.00035119,2]
[355809099,1741607439509,-403.78,0.00035528,3]
[355809100,1741607439520,-500.0,0.00035572,5]
[355809101,1741607439531,-500.0,0.00035572,2]
[355809102,1741607439541,-502.54450241,0.00035572,5]
[355809103,1741607439551,-500.0,0.00035572,5]
[355809104,1741607439561,-500.0,0.00035572,5]
[355809105,1741607439571,-505.54191709,0.00035572,5]
[355809106,1741607439584,-500.0,0.00035572,5]
[355809107,1741607439595,-500.0,0.00035572,5]
[355809108,1741607439605,-500.0,0.00035572,5]
[355809109,1741607439615,-500.0,0.00035572,5]
[355809110,1741607439624,-50000.0,0.000356,30]
[355809111,1741607439634,-3841.83194423,0.00035613,2]
[355809112,1741607439644,-172.44,0.00035616,2]
[355809113,1741607439654,-151.0,0.00035616,14]
[355809114,1741607439663,-151.0,0.00035616,7]
[355809115,1741607439673,-151.0,0.00035616,14]
[355809116,1741607439683,-295.481578,0.00035616,14]
[355809117,1741607439692,-295.481578,0.00035616,14]
[355809118,1741607439702,-151.0,0.00035616,14]
[355809119,1741607439711,-151.0,0.00035616,14]
[355809120,1741607439722,-216.187147,0.00035616,14]
[355809121,1741607439732,-216.187147,0.00035616,14]
[355809122,1741607439742,-500.0,0.00035616,2]
[355809123,1741607439753,-500.0,0.00035616,2]
[355809124,1741607439763,-500.0,0.00035616,2]
[355809125,1741607439773,-500.0,0.00035616,2]
[355809126,1741607439783,-500.0,0.00035616,2]
[355809127,1741607439794,-500.0,0.00035616,2]
[355809128,1741607439807,-500.0,0.00035616,2]
[355809129,1741607439817,-500.0,0.00035616,2]
[355809130,1741607439826,-500.0,0.00035616,2]
[355809131,1741607439837,-500.0,0.00035616,2]
[355809132,1741607439858,-500.0,0.00035616,2]
[355809133,1741607439879,-599.77788168,0.00035616,2]
[355809134,1741607439903,-500.0,0.00035616,2]
[355809135,1741607439926,-500.0,0.00035616,2]
[355809136,1741607439950,-500.0,0.00035616,2]
[355809137,1741607439969,-500.0,0.00035616,2]
[355809138,1741607439990,-500.0,0.00035616,2]
[355809139,1741607440006,-500.0,0.00035616,2]
[355809140,1741607440026,-500.0,0.00035616,2]
[355809142,1741607440049,-500.0,0.00035616,2]
[355809143,1741607440070,-500.0,0.00035616,2]
[355809144,1741607440083,-500.0,0.00035616,2]
[355809146,1741607440106,-500.0,0.00035616,2]
[355809147,1741607440120,-500.0,0.00035616,2]
[355809148,1741607440137,-500.0,0.00035616,2]
[355809149,1741607440154,-500.0,0.00035616,2]
[355809150,1741607440169,-600.64932536,0.000357,2]
[355809151,1741607440187,-265.6951669,0.00035844,2]
[355809152,1741607440204,-158.86388683,0.00035878,5]
[355809153,1741607440221,-330.61224002,0.00035878,5]
[355809154,1741607440239,-166.49638332,0.00035878,2]
[355809155,1741607440257,-500.0,0.00035878,5]
[355809156,1741607440274,-540.69870481,0.00035878,5]
[355809157,1741607440292,-376.382743,0.0003589,2]
[355809158,1741607440310,-480.77868239,0.00036526,2]
[355809159,1741607440329,-204.4047143,0.00036566,2]
[355809160,1741607440347,-8777.5065776,0.0003662,2]
[355809161,1741607440365,-424.68,0.000367,30]
[355809162,1741607440382,-500.0,0.00036705,2]
[355809163,1741607440399,-2124.47405219,0.00037014,2]
[355809164,1741607440416,-763.03,0.000373,30]
[355809165,1741607440433,-182.12,0.000373,30]
[355809166,1741607440450,-8706.44,0.000374,30]
[355809167,1741607440466,-500.0,0.000376,5]
[355809168,1741607440482,-160.0,0.00039761,3]
[355809169,1741607440501,-151.0,0.00039761,14]
[355809170,1741607440521,-151.0,0.00039761,14]
[355809171,1741607440538,-151.0,0.00039761,14]
[355809172,1741607440563,-151.0,0.00039761,14]
[355809173,1741607440582,-151.0,0.00039761,14]
[355809174,1741607440600,-295.481578,0.00039761,14]
[355809175,1741607440617,-295.481578,0.00039761,14]
[355809176,1741607440634,-151.0,0.00039761,14]
[355809177,1741607440652,-151.0,0.00039771,14]
[355809178,1741607440779,-151.0,0.00039771,14]
[355809179,1741607440803,-151.0,0.00039771,14]
[355809180,1741607440813,-151.0,0.00039771,14]
[355809181,1741607440823,-151.0,0.00039771,14]
[355809182,1741607440833,-151.0,0.00039771,14]
[355809183,1741607440843,-151.0,0.00039771,14]
[355809184,1741607440853,-151.0,0.00039771,14]
[355809185,1741607440863,-151.0,0.00039771,14]
[355809186,1741607440873,-151.0,0.00039771,14]
[355809187,1741607440883,-151.0,0.00039771,14]
[355809188,1741607440893,-151.0,0.00039771,14]
[355809190,1741607440903,-151.0,0.00039771,14]
[355809191,1741607440913,-151.0,0.00039771,14]
[355809192,1741607440923,-151.0,0.00039771,14]
[355809194,1741607440933,-151.0,0.00039771,14]
[355809195,1741607440943,-151.0,0.00039771,14]
[355809196,1741607440953,-151.0,0.00039771,14]
[355809197,1741607440963,-151.0,0.00039771,14]
[355809198,1741607440973,-151.0,0.00039771,14]
[355809200,1741607440982,-151.0,0.00039771,14]
[355809202,1741607440992,-151.0,0.00039771,14]
[355809204,1741607441002,-151.0,0.00039771,14]
[355809205,1741607441012,-151.0,0.00039771,14]
[355809206,1741607441022,-151.0,0.00039771,14]
[355809207,1741607441032,-151.0,0.00039771,14]
[355809208,1741607441042,-151.0,0.00039771,14]
[355809209,1741607441055,-151.0,0.00039771,14]
[355809210,1741607441065,-151.0,0.00039771,14]
[355809211,1741607441074,-151.0,0.00039771,14]
[355809212,1741607441083,-151.0,0.00039771,14]
[355809213,1741607441092,-151.0,0.00039771,14]
[355809214,1741607441101,-151.0,0.00039771,14]
[355809215,1741607441111,-151.0,0.00039771,14]
[355809216,1741607441121,-151.0,0.00039771,14]
[355809217,1741607441131,-151.0,0.00039771,14]
[355809218,1741607441142,-151.0,0.00039771,14]
[355809219,1741607441152,-151.0,0.00039771,14]
[355809220,1741607441162,-151.0,0.00039771,14]
[355809221,1741607441171,-151.0,0.00039771,14]
[355809222,1741607441181,-151.0,0.00039771,14]
[355809223,1741607441191,-151.0,0.00039771,14]
[355809224,1741607441201,-151.0,0.00039771,14]
[355809225,1741607441211,-151.0,0.00039771,14]
[355809226,1741607441221,-151.0,0.00039771,14]
[355809227,1741607441231,-151.0,0.00039771,14]
[355809228,1741607441241,-151.0,0.00039771,14]
[355809229,1741607441251,-151.0,0.00039771,14]
[355809230,1741607441261,-151.0,0.00039771,14]
[355809231,1741607441271,-151.0,0.00039771,14]
[355809232,1741607441281,-151.0,0.00039771,14]
[355809233,1741607441291,-151.0,0.00039771,14]
[355809234,1741607441304,-151.0,0.00039771,14]
[355809235,1741607441315,-235.247694,0.00039771,14]
[355809236,1741607441326,-432.40642,0.00039771,14]
[355809237,1741607441336,-432.40642,0.00039771,14]
[355809238,1741607441347,-432.40642,0.00039771,14]
[355809239,1741607441358,-432.40642,0.00039771,14]
[355809240,1741607441368,-284.397047,0.00039771,14]
[355809241,1741607441378,-284.397047,0.00039771,14]
[355809242,1741607441388,-284.397047,0.00039771,14]
[355809243,1741607441398,-284.397047,0.00039771,14]
[355809244,1741607441408,-151.0,0.00039771,14]
[355809245,1741607441418,-155.917356,0.00039771,14]
[355809246,1741607441428,-285.319707,0.00039771,14]
[355809247,1741607441438,-285.319707,0.00039771,14]
[355809248,1741607441447,-285.319707,0.00039771,14]
[355809249,1741607441457,-285.319707,0.00039771,14]
[355809250,1741607441467,-501.30216289,0.00039773,5]
[355809251,1741607441477,-364.68,0.000398,14]
[355809252,1741607441487,-151.0,0.00039848,2]
[355809253,1741607441503,-275.336824,0.00039872,14]
[355809254,1741607441513,-151.0,0.00039872,14]
[355809255,1741607441524,-151.0,0.00039872,14]
[355809256,1741607441536,-151.0,0.00039872,14]
[355809257,1741607441548,-151.0,0.00039872,14]
[355809258,1741607441560,-504.47196486,0.00039873,2]
[355809259,1741607441571,-507.62523983,0.00039873,5]
[355809260,1741607441584,-150.87177037,0.00039873,5]
[355809261,1741607441594,-500.0,0.00039873,5]
[355809262,1741607441605,-500.0,0.0003988,5]
[355809263,1741607441615,-500.0,0.0003988,5]
[355809264,1741607441625,-556.89060632,0.0003988,5]
[355809265,1741607441635,-500.0,0.0003988,5]
[355809266,1741607441645,-605.03153518,0.0003988,5]
[355809267,1741607441654,-501.54132705,0.0003988,5]
[355809268,1741607441664,-151.0,0.00039887,14]
[355809269,1741607441673,-151.0,0.00039887,14]
[355809270,1741607441683,-151.0,0.00039887,14]
[355809271,1741607441693,-151.0,0.00039887,14]
[355809272,1741607441703,-151.0,0.00039887,14]
[355809273,1741607441713,-151.0,0.00039887,14]
[355809274,1741607441724,-151.0,0.00039887,14]
[355809275,1741607441733,-160.183128,0.00039887,14]
[355809276,1741607441744,-151.0,0.00039887,14]
[355809277,1741607441754,-151.0,0.00039887,14]
[355809278,1741607441765,-432.40642,0.00039887,14]
[355809279,1741607441775,-432.40642,0.00039887,14]
[355809280,1741607441784,-284.397047,0.00039887,14]
[355809281,1741607441795,-284.397047,0.00039887,14]
[355809282,1741607441805,-285.319707,0.00039887,14]
[355809283,1741607441815,-285.319707,0.00039887,14]
[355809284,1741607441825,-151.0,0.00039897,14]
[355809285,1741607441836,-260.802116,0.00039897,14]
[355809286,1741607441846,-151.0,0.00039897,14]
[355809287,1741607441856,-151.0,0.00039897,14]
[355809288,1741607441867,-151.0,0.00039897,14]
[355809289,1741607441877,-151.0,0.00039897,14]
[355809290,1741607441887,-151.0,0.00039897,14]
[355809291,1741607441897,-151.0,0.00039897,14]
[355809292,1741607441907,-2124.47405219,0.00039961,2]
[355809293,1741607441917,-559.25677975,0.00039983,2]
[355809294,1741607441927,-386.68281974,0.00039984,2]
[355809295,1741607441937,-160.0,0.00039991,2]
[355809296,1741607441947,-151.0,0.00039998,14]
[355809297,1741607441957,-151.0,0.00039998,14]
[355809298,1741607441967,-151.0,0.00040073,14]
[355809299,1741607441978,-172.289373,0.00040073,14]
[355809300,1741607441989,-151.0,0.00040073,14]
[355809301,1741607441999,-151.0,0.00040073,14]
[355809302,1741607442010,-151.0,0.00040073,14]
[355809303,1741607442020,-151.0,0.00040073,14]
[355809304,1741607442031,-151.0,0.00040073,14]
[355809305,1741607442041,-151.0,0.00040073,14]
[355809306,1741607442053,-164.809128,0.00040079,14]
[355809307,1741607442064,-151.0,0.00040079,14]
[355809308,1741607442074,-151.0,0.00040079,14]
[355809309,1741607442084,-151.0,0.00040079,14]
[355809310,1741607442094,-151.0,0.00040079,14]
[355809311,1741607442103,-151.0,0.00040079,14]
[355809312,1741607442113,-151.0,0.0004009,14]
[355809313,1741607442123,-151.0,0.0004009,14]
[355809314,1741607442133,-151.0,0.0004009,14]
[355809315,1741607442143,-290.317632,0.000401,14]
[355809316,1741607442154,-151.0,0.000401,14]
[355809317,1741607442249,-151.0,0.000401,14]
[355809318,1741607442265,-424.68,0.000401,30]
[355809319,1741607442275,-156.587,0.00040396,2]
[355809320,1741607442285,-600.64932536,0.000407,2]
[355809321,1741607442296,-162.380719,0.00040944,2]
[355809322,1741607442306,-1000.0,0.00041052,2]
[355809323,1741607442315,-1000.0,0.00041052,5]
[355809324,1741607442325,-1000.0,0.00041052,5]
[355809325,1741607442335,-1000.0,0.00041052,5]
[355809326,1741607442346,-1000.0,0.00041052,5]
[355809327,1741607442355,-506.43616778,0.00041052,5]
[355809328,1741607442366,-1000.0,0.00041052,5]
[355809329,1741607442375,-763.03,0.000411,30]
[355809330,1741607442385,-568.23,0.000411,30]
[355809331,1741607442394,-182.12,0.000411,30]
[355809332,1741607442404,-376.382743,0.00041211,2]
[355809333,1741607442414,-295.481578,0.00041357,120]
[355809334,1741607442424,-295.481578,0.00041357,120]
[355809335,1741607442434,-151.0,0.00041357,120]
[355809336,1741607442444,-1000.0,0.00041357,7]
[355809337,1741607442454,-285.02060359,0.00041492,2]
[355809338,1741607442463,-176.46781394,0.00041837,62]
[355809339,1741607442472,-8706.44,0.000419,30]
[355809340,1741607442482,-364.68,0.000419,14]
[355809341,1741607442493,-2506.27,0.000425,7]
[355809342,1741607442506,-2124.47405219,0.00042907,28]
[355809343,1741607442517,-178.75080625,0.00043,44]
[355809344,1741607442526,-151.0,0.00043079,120]
[355809345,1741607442537,-1000.0,0.00043079,10]
[355809346,1741607442548,-1501.30890785,0.00043148,2]
[355809347,1741607442557,-161.960021,0.0004331,2]
[355809348,1741607442567,-155.65691676,0.00043814,20]
[355809349,1741607442578,-424.68,0.000439,30]
[355809350,1741607442588,-500.0,0.00044889,120]
[355809351,1741607442598,-462.60132247,0.00045352,10]
[355809352,1741607442607,-1000.0,0.00045359,10]
[355809353,1741607442618,-1000.0,0.00045359,10]
[355809354,1741607442628,-950.35340751,0.00045359,10]
[355809356,1741607442637,-2124.47405219,0.00045854,28]
[355809357,1741607442647,-185.0,0.00046,30]
[355809359,1741607442657,-185.0,0.00046,28]
[355809360,1741607442667,-376.382743,0.00046532,2]
[355809361,1741607442677,-150.0,0.00046574,30]
[355809362,1741607442687,-4537.97,0.00046575,120]
[355809363,1741607442697,-1000.0,0.00046575,120]
[355809364,1741607442708,-568.23,0.000466,30]
[355809365,1741607442718,-182.12,0.000466,30]
[355809366,1741607442729,-1000.0,0.00046602,120]
[355809367,1741607442738,-1000.0,0.0004663,120]
[355809368,1741607442749,-1000.0,0.00046657,120]
[355809369,1741607442759,-1000.0,0.00046684,120]
[355809370,1741607442770,-1000.0,0.00046712,120]
[355809371,1741607442780,-1000.0,0.00046739,120]
[355809372,1741607442790,-1030.53436079,0.00046767,120]
[355809373,1741607442802,-200000.0,0.000468,30]
[355809374,1741607442813,-364.68,0.000469,30]
[355809375,1741607442824,-150.0,0.00047944,30]
[355809376,1741607442834,-1000.0,0.00048,120]
[355809377,1741607442844,-1000.009999,0.00048,120]
[355809378,1741607442855,-200.0,0.00048,30]
[355809379,1741607442865,-200.0,0.00048,30]
[355809380,1741607442875,-763.03,0.00048,30]
[355809381,1741607442886,-200.0,0.00048,10]
[355809382,1741607442896,-185.0,0.00048,60]
[355809383,1741607442906,-151.0,0.000481,21]
[355809384,1741607442916,-151.0,0.000481,28]
[355809385,1741607442926,-151.0,0.000481,28]
[355809386,1741607442936,-2734.35609174,0.00048188,2]
[355809387,1741607442946,-8706.44,0.000482,30]
[355809388,1741607442955,-151.0,0.000482,120]
[355809389,1741607442966,-216.187147,0.000482,120]
[355809390,1741607442975,-216.187147,0.000482,120]
[355809391,1741607442985,-540.47,0.00048289,9]
[355809392,1741607442995,-811.02198456,0.00048391,2]
[355809393,1741607443004,-811.02198456,0.00048742,2]
[355809394,1741607443015,-1000.0,0.000488,60]
[355809395,1741607443025,-2124.47405219,0.000488,28]
[355809396,1741607443035,-179.42331514,0.0004888,40]
[355809397,1741607443048,-151.0,0.000489,120]
[355809398,1741607443057,-151.0,0.000489,120]
[355809399,1741607443067,-151.0,0.000489,120]
[355809400,1741607443077,-151.0,0.000489,120]
[355809401,1741607443087,-151.0,0.000489,30]
[355809402,1741607443096,-151.0,0.000489,30]
[355809403,1741607443106,-151.0,0.000489,120]
[355809404,1741607443116,-151.0,0.000489,120]
[355809405,1741607443126,-151.0,0.000489,120]
[355809406,1741607443136,-151.0,0.000489,120]
[355809407,1741607443146,-151.0,0.000489,120]
[355809408,1741607443155,-151.0,0.000489,120]
[355809409,1741607443166,-432.40642,0.000489,120]
[355809410,1741607443176,-432.40642,0.000489,120]
[355809411,1741607443185,-151.0,0.000489,120]
[355809412,1741607443195,-9129.57991741,0.000489,2]
[355809413,1741607443204,-500.0,0.00048973,10]
[355809415,1741607443214,-502.860608,0.00048973,10]
[355809417,1741607443223,-500.0,0.00048973,10]
[355809420,1741607443234,-260.77029428,0.00048973,10]
[355809423,1741607443244,-500.0,0.00048973,10]
[355809425,1741607443253,-500.95458269,0.00048973,3]
[355809426,1741607443263,-500.0,0.00048973,7]
[355809427,1741607443272,-213.98107202,0.00048973,10]
[355809428,1741607443281,-500.0,0.00048973,7]
[355809429,1741607443291,-285.69642306,0.00048973,10]
[355809431,1741607443301,-500.0,0.00048973,10]
[355809432,1741607443310,-500.58071568,0.00048973,10]
[355809433,1741607443319,-611.61085525,0.00048973,10]
[355809434,1741607443328,-500.0,0.00048973,10]
[355809435,1741607443338,-500.0,0.00048973,10]
[355809437,1741607443347,-500.0,0.00048973,10]
[355809438,1741607443357,-160.7614657,0.00048973,10]
[355809439,1741607443367,-500.0,0.00048973,10]
[355809440,1741607443376,-500.0,0.00048973,10]
[355809441,1741607443386,-500.0,0.00048973,10]
[355809442,1741607443395,-617.1308441,0.00048973,10]
[355809443,1741607443405,-500.0,0.00048973,10]
[355809444,1741607443414,-500.0,0.00048973,10]
[355809445,1741607443424,-500.0,0.00048973,10]
[355809446,1741607443433,-503.86005574,0.00048973,10]
[355809447,1741607443443,-500.0,0.00048973,10]
[355809448,1741607443453,-500.0,0.00048973,10]
[355809449,1741607443463,-303.67528419,0.00048973,10]
[355809450,1741607443472,-500.0,0.00048973,10]
[355809451,1741607443563,-500.0,0.00048973,10]
[355809452,1741607443574,-523.65180639,0.00048973,2]
[355809453,1741607443586,-500.0,0.00048973,10]
[355809454,1741607443596,-500.0,0.00048973,10]
[355809455,1741607443606,-508.02991586,0.00048973,10]
[355809456,1741607443616,-499.35639846,0.00048973,10]
[355809457,1741607443626,-500.0,0.00048973,10]
[355809458,1741607443635,-502.69296197,0.00048973,10]
[355809459,1741607443645,-500.0,0.00048973,10]
[355809460,1741607443654,-151.0,0.00048973,120]
[355809461,1741607443664,-151.0,0.00048973,120]
[355809462,1741607443673,-151.0,0.00048973,120]
[355809463,1741607443683,-151.0,0.00048973,120]
[355809464,1741607443692,-151.0,0.00048973,120]
[355809465,1741607443702,-284.397047,0.00048973,120]
[355809466,1741607443711,-284.397047,0.00048973,120]
[355809467,1741607443720,-285.319707,0.00048973,120]
[355809468,1741607443730,-285.319707,0.00048973,120]
[355809469,1741607443739,-503.2420298,0.00048975,10]
[355809470,1741607443748,-500.0,0.00048975,5]
[355809471,1741607443758,-502.28483876,0.00048975,5]
[355809472,1741607443768,-500.0,0.00048975,10]
[355809473,1741607443777,-500.0,0.00048975,10]
[355809474,1741607443787,-513.59064664,0.00048975,10]
[355809475,1741607443798,-1138.8,0.0004898,120]
[355809476,1741607443808,-1138.8,0.0004898,120]
[355809477,1741607443818,-1138.8,0.0004898,120]
[355809478,1741607443828,-1138.8,0.0004898,120]
[355809479,1741607443838,-1138.8,0.0004898,120]
[355809480,1741607443847,-1138.8,0.0004898,120]
[355809481,1741607443857,-1138.8,0.0004898,120]